{"text_format":"3","workbook":"xlsx","n_sheets":4,"sheets":["Attività cardine","Roadmap","Informazioni","Dati grafico"],"not_rendered":{"charts":1,"defined_names":2},"read":"whole","date_system":"1900"}

{"sheet":"Attività cardine","index":0,"n_rows":27,"n_cols":5,"rows_kept":27}
["Creare una Roadmap immettendo le attività cardine e le attività importanti in questo foglio di lavoro.\nIl titolo di questo foglio di lavoro si trova nella cella C1. \nLe informazioni su come usare questo foglio di lavoro, con istruzioni per le utilità per la lettura dello schermo, si trovano nel foglio di lavoro Informazioni.\nContinuare a spostarsi verso il basso nella colonna A per altre istruzioni.",null,"Attività cardine"]
["Le intestazioni di tabella si trovano nelle celle da C2 a E2. Usare le opzioni Ordina e filtra per ordinare o trovare voci specifiche.\nNella tabella a partire dalla cella C3 immettere le Attività cardine con le date e impostare una posizione per rappresentare l'attività cardine nel grafico.\nLa colonna B è stata nascosta. Il grafico viene generato da questi dati con una barra di scorrimento per visualizzare porzioni della sequenza temporale. La colonna B consente di determinare quali Attività cardine rappresentare nel grafico quando viene incrementata la barra di scorrimento. \nAvviso: L'eliminazione o la modifica del contenuto della colonna B potrebbe compromettere l'integrità del grafico incorporato in questa cartella di lavoro.","N.","Posizione","Data","Attività cardine"]
["Immettere nella cella C1 la Posizione per rappresentare la data e l'attività cardine nel grafico. Immettere un numero positivo compreso tra 1 e 3 per rappresentare l'attività cardine sopra la sequenza temporale. Immettere un numero negativo compreso tra 1 e 3 per rappresentare l'attività cardine sotto la sequenza temporale.\nImmettere la Data e l'Attività cardine o attività nelle colonne D ed E della tabella.\nRipetere questa procedura per ogni nuova riga nella tabella a destra.\nI dati di esempio sono riportati nelle righe da 3 a 26. Modificare o eliminare il contenuto di esempio per creare una roadmap personalizzata.\nPassare alla cella A27 per l'istruzione successiva.",{"$f":"ROW($A1)","v":1},1,{"$f":"TODAY()","v":"2018-06-29"},"Inizio"]
[null,{"$f":"ROW($A2)","v":2},-2,{"$f":"D3+10","v":"2018-07-09"},"Analisi del problema\nattività 1"]
[null,3,1,{"$f":"D4+20","v":"2018-07-29"},"Sviluppo del business caso\nattività 1\nattività 2"]
[null,4,-1,{"$f":"D5+30","v":"2018-08-28"},"Analisi della presentazione"]
[null,5,{"v":-0.5,"d":"-1"},{"$f":"D6+40","v":"2018-10-07"},"Avvio esecutivo\nattività 1\nattività 2"]
[null,6,2,{"$f":"D7+50","v":"2018-11-26"},"Allineamento esecutivo\nattività 1\nattività 2\nattività 3"]
[null,{"$f":"ROW($A7)","v":7},{"v":0.5,"d":"1"},{"$f":"D8+60","v":"2019-01-25"},"Coinvolgimento stakeholder"]
[null,8,-1,{"$f":"D9+70","v":"2019-04-05"},"Selezione delle risorse"]
[null,9,{"v":0.5,"d":"1"},{"$f":"D10+80","v":"2019-06-24"},"Creazione del team\nattività 1 "]
[null,10,-2,{"$f":"D11+90","v":"2019-09-22"},"Avvio del team\nattività 1 \nattività 2\nattività 3\nattività 4"]
[null,11,3,{"$f":"D12+100","v":"2019-12-31"},"Avvio della raccolta dati"]
[null,12,-1,{"$f":"D13+90","v":"2020-03-30"},"Analisi dei dati"]
[null,13,1,{"$f":"D14+80","v":"2020-06-18"},"Progettazione"]
[null,14,1,{"$f":"D15+70","v":"2020-08-27"},"Proof of Concept"]
[null,15,-3,{"$f":"D16+60","v":"2020-10-26"},"Test e analisi"]
[null,16,-2,{"$f":"D17+50","v":"2020-12-15"},"Riprogettazione"]
[null,17,2,{"$f":"D18+40","v":"2021-01-24"},"Risviluppo"]
[null,18,-1,{"$f":"D19+30","v":"2021-02-23"},"Test e analisi"]
[null,19,1,{"$f":"D20+20","v":"2021-03-15"},"Riprogettazione"]
[null,20,-3,{"$f":"D21+10","v":"2021-03-25"},"Risviluppo"]
[null,21,2,{"$f":"D22+20","v":"2021-04-14"},"Test finale"]
[null,22,1,{"$f":"D23+30","v":"2021-05-14"},"Beta test"]
[null,23,-3,{"$f":"D24+40","v":"2021-06-23"},"Revisione"]
[null,24,-2,{"$f":"D25+50","v":"2021-08-12"},"Rilascio per il marketing"]
["Per aggiungere altre righe alla tabella Attività cardine della Roadmap, inserire una nuova riga sopra a questa.\nNon ci sono altre istruzioni in questo foglio di lavoro.",null,"Per aggiungere altre attività cardine, inserire nuove righe sopra a questa."]

{"sheet":"Roadmap","index":1,"n_rows":3,"n_cols":4,"rows_kept":3}
["In questo foglio di lavoro è presente un grafico che mostra le attività cardine dal foglio di lavoro Attività cardine. \nGli anni sono indicati nelle celle B2, C2 e D2 e sono formattati con lo stile Titolo 3.\nSono rappresentate 10 attività cardine alla volta. \nPer spostarsi nella roadmap, usare la barra di scorrimento nelle celle da B4 a D4.\nGli anni della sequenza temporale si trovano nelle celle da B3 a D3.\nNon ci sono altre istruzioni in questo foglio di lavoro."]
[]
[null,{"$f":"'Dati grafico'!B20","v":2018},{"$f":"'Dati grafico'!B21","v":""},{"$f":"'Dati grafico'!B22","v":2019}]

{"sheet":"Informazioni","index":2,"n_rows":5,"n_cols":1,"rows_kept":5}
["Informazioni su questa cartella di lavoro"]
["Guida per le utilità per la lettura dello schermo"]
["Questa cartella di lavoro contiene 4 fogli di lavoro. \n\nAttività cardine\nRoadmap\nInformazioni\nDati grafico (nascosto)\n\nLe istruzioni per ogni foglio di lavoro si trovano nella colonna A a partire dalla cella A1 di ogni foglio di lavoro. Sono scritte con testo nascosto. Ogni passaggio descrive le informazioni presenti nella riga corrispondente. Ogni passaggio successivo continua nella cella A2, A3 e così via, salvo diversa indicazione esplicita. Ad esempio, l'istruzione potrebbe indicare di \"passare alla cella A6\" per il passaggio successivo. \n\nIl testo nascosto non verrà stampato.\n\nPer rimuovere queste istruzioni da un foglio di lavoro, è sufficiente eliminare la colonna A.\n"]
["Questa roadmap usa le posizioni per tracciare le attività cardine e le attività. Le posizioni possono essere usate per aumentare la rilevanza di un'attività cardine o attività. È sufficiente modificare i valori in base alle preferenze di rilevanza. Ad esempio, l'attività cardine/attività 3 potrebbe essere più rilevante rispetto all'attività cardine/attività 2. Per raffigurarlo nel grafico, è sufficiente impostare un valore di posizione superiore per l'attività cardine/attività 3 rispetto all'attività cardine/attività 2.  \n"]
["Questa è l'ultima istruzione in questo foglio di lavoro."]

{"sheet":"Dati grafico","index":3,"n_rows":26,"n_cols":4,"rows_kept":26,"hidden":true}
["I dati per la creazione di un grafico dinamico si trovano in questo foglio di lavoro. Non eliminare questo foglio di lavoro.\nL'eliminazione di questo foglio di lavoro potrebbe compromettere le funzionalità dinamiche della cartella di lavoro.","Non eliminare questo foglio di lavoro."]
["Il titolo della tabella si trova nella cella B2.","Contenuto del grafico dinamico"]
["Le intestazioni di tabella si trovano nelle celle da B3 a D3. \nQuesta tabella viene aggiornata automaticamente in base al contenuto immesso nel foglio di lavoro Attività cardine.\nAvviso: La modifica o l'eliminazione del contenuto di questa tabella potrebbe compromettere la funzionalità di aggiornamento dinamico del grafico Roadmap nel foglio di lavoro Roadmap.\nPassare alla cella A15 per l'istruzione successiva.","Data","Eventi","Posizione"]
[null,{"$f":"IFERROR(IF(LEN('Attività cardine'!D3)=0,\"\",INDEX(AttivitàCardineRoadmap[],'Attività cardine'!$B3+$B$17,3)),\"\")","v":"2018-06-29"},{"$f":"IFERROR(IF(LEN('Attività cardine'!E3)=0,\"\",INDEX(AttivitàCardineRoadmap[],'Attività cardine'!$B3+$B$17,4)),\"\")","v":"Inizio"},{"$f":"IFERROR(INDEX(AttivitàCardineRoadmap[],'Attività cardine'!$B3+$B$17,2),\"\")","v":1}]
[null,{"$f":"IFERROR(IF(LEN('Attività cardine'!D4)=0,\"\",INDEX(AttivitàCardineRoadmap[],'Attività cardine'!$B4+$B$17,3)),\"\")","v":"2018-07-09"},{"$f":"IFERROR(IF(LEN('Attività cardine'!E4)=0,\"\",INDEX(AttivitàCardineRoadmap[],'Attività cardine'!$B4+$B$17,4)),\"\")","v":"Analisi del problema\nattività 1"},{"$f":"IFERROR(INDEX(AttivitàCardineRoadmap[],'Attività cardine'!$B4+$B$17,2),\"\")","v":-2}]
[null,{"$f":"IFERROR(IF(LEN('Attività cardine'!D5)=0,\"\",INDEX(AttivitàCardineRoadmap[],'Attività cardine'!$B5+$B$17,3)),\"\")","v":"2018-07-29"},{"$f":"IFERROR(IF(LEN('Attività cardine'!E5)=0,\"\",INDEX(AttivitàCardineRoadmap[],'Attività cardine'!$B5+$B$17,4)),\"\")","v":"Sviluppo del business caso\nattività 1\nattività 2"},{"$f":"IFERROR(INDEX(AttivitàCardineRoadmap[],'Attività cardine'!$B5+$B$17,2),\"\")","v":1}]
[null,{"$f":"IFERROR(IF(LEN('Attività cardine'!D6)=0,\"\",INDEX(AttivitàCardineRoadmap[],'Attività cardine'!$B6+$B$17,3)),\"\")","v":"2018-08-28"},{"$f":"IFERROR(IF(LEN('Attività cardine'!E6)=0,\"\",INDEX(AttivitàCardineRoadmap[],'Attività cardine'!$B6+$B$17,4)),\"\")","v":"Analisi della presentazione"},{"$f":"IFERROR(INDEX(AttivitàCardineRoadmap[],'Attività cardine'!$B6+$B$17,2),\"\")","v":-1}]
[null,{"$f":"IFERROR(IF(LEN('Attività cardine'!D7)=0,\"\",INDEX(AttivitàCardineRoadmap[],'Attività cardine'!$B7+$B$17,3)),\"\")","v":"2018-10-07"},{"$f":"IFERROR(IF(LEN('Attività cardine'!E7)=0,\"\",INDEX(AttivitàCardineRoadmap[],'Attività cardine'!$B7+$B$17,4)),\"\")","v":"Avvio esecutivo\nattività 1\nattività 2"},{"$f":"IFERROR(INDEX(AttivitàCardineRoadmap[],'Attività cardine'!$B7+$B$17,2),\"\")","v":-0.5}]
[null,{"$f":"IFERROR(IF(LEN('Attività cardine'!D8)=0,\"\",INDEX(AttivitàCardineRoadmap[],'Attività cardine'!$B8+$B$17,3)),\"\")","v":"2018-11-26"},{"$f":"IFERROR(IF(LEN('Attività cardine'!E8)=0,\"\",INDEX(AttivitàCardineRoadmap[],'Attività cardine'!$B8+$B$17,4)),\"\")","v":"Allineamento esecutivo\nattività 1\nattività 2\nattività 3"},{"$f":"IFERROR(INDEX(AttivitàCardineRoadmap[],'Attività cardine'!$B8+$B$17,2),\"\")","v":2}]
[null,{"$f":"IFERROR(IF(LEN('Attività cardine'!D9)=0,\"\",INDEX(AttivitàCardineRoadmap[],'Attività cardine'!$B9+$B$17,3)),\"\")","v":"2019-01-25"},{"$f":"IFERROR(IF(LEN('Attività cardine'!E9)=0,\"\",INDEX(AttivitàCardineRoadmap[],'Attività cardine'!$B9+$B$17,4)),\"\")","v":"Coinvolgimento stakeholder"},{"$f":"IFERROR(INDEX(AttivitàCardineRoadmap[],'Attività cardine'!$B9+$B$17,2),\"\")","v":0.5}]
[null,{"$f":"IFERROR(IF(LEN('Attività cardine'!D10)=0,\"\",INDEX(AttivitàCardineRoadmap[],'Attività cardine'!$B10+$B$17,3)),\"\")","v":"2019-04-05"},{"$f":"IFERROR(IF(LEN('Attività cardine'!E10)=0,\"\",INDEX(AttivitàCardineRoadmap[],'Attività cardine'!$B10+$B$17,4)),\"\")","v":"Selezione delle risorse"},{"$f":"IFERROR(INDEX(AttivitàCardineRoadmap[],'Attività cardine'!$B10+$B$17,2),\"\")","v":-1}]
[null,{"$f":"IFERROR(IF(LEN('Attività cardine'!D11)=0,\"\",INDEX(AttivitàCardineRoadmap[],'Attività cardine'!$B11+$B$17,3)),\"\")","v":"2019-06-24"},{"$f":"IFERROR(IF(LEN('Attività cardine'!E11)=0,\"\",INDEX(AttivitàCardineRoadmap[],'Attività cardine'!$B11+$B$17,4)),\"\")","v":"Creazione del team\nattività 1 "},{"$f":"IFERROR(INDEX(AttivitàCardineRoadmap[],'Attività cardine'!$B11+$B$17,2),\"\")","v":0.5}]
[null,{"$f":"IFERROR(IF(LEN('Attività cardine'!D12)=0,\"\",INDEX(AttivitàCardineRoadmap[],'Attività cardine'!$B12+$B$17,3)),\"\")","v":"2019-09-22"},{"$f":"IFERROR(IF(LEN('Attività cardine'!E12)=0,\"\",INDEX(AttivitàCardineRoadmap[],'Attività cardine'!$B12+$B$17,4)),\"\")","v":"Avvio del team\nattività 1 \nattività 2\nattività 3\nattività 4"},{"$f":"IFERROR(INDEX(AttivitàCardineRoadmap[],'Attività cardine'!$B12+$B$17,2),\"\")","v":-2}]
[]
["Lo scorrimento della roadmap si basa su un valore incrementale. Il titolo di questa funzionalità si trova nella cella B15.\nNelle celle B16 e B17 è presente una tabella con un'intestazione e un singolo valore.\nPassare alla cella A19 per l'istruzione successiva.","Funzionalità di scorrimento"]
[null,"Incremento di riga"]
[null,0]
[]
["Il grafico Roadmap traccia gli anni per la sequenza temporale. A questo scopo, è necessario acquisire gli anni dall'elenco Attività cardine. \nIl titolo di questa sezione è \"Anno\" e si trova nella cella B19. \nI valori degli anni vengono generati automaticamente nelle celle da C20 a C22.\nAvviso: L'eliminazione o la modifica di questi anni potrebbe incidere sull'accuratezza del grafico Roadmap.\nPassare alla cella A24 per l'istruzione successiva.","Anno"]
[null,{"$f":"IFERROR(YEAR(B4),\"\")","v":2018},"<-- anno per la posizione iniziale della roadmap"]
[null,{"$f":"IFERROR(IF(YEAR($B$9)=$B$20,\"\",YEAR($B$9)),\"\")","v":""},"<-- anno per il periodo centrale della roadmap; potrebbe essere vuoto se si tratta dello stesso anno della posizione iniziale della roadmap"]
[null,{"$f":"IFERROR(IF(YEAR($B$13)=$B$20,\"\",YEAR($B$13)),\"\")","v":2019},"<-- anno per l'ultima posizione della roadmap; potrebbe essere vuoto se si tratta dello stesso anno della posizione iniziale della roadmap"]
[]
["Gli indicatori ad anello nel grafico Roadmap contengono le date tratte dal contenuto del grafico dinamico in questo foglio di lavoro. Le date vengono sono Prima data nella cella C24, Data intermedia nella cella C25 e Ultima data nella cella C26.\nNon ci sono altre istruzioni in questo foglio di lavoro.","Prima data",{"$f":"B4","v":"2018-06-29"}]
[null,"Data intermedia",{"$f":"B9","v":"2018-11-26"}]
[null,"Ultima data",{"$f":"B13","v":"2019-09-22"}]